bitfinex-derivatives/quotes_ETHF0:USTF0_20241207
["timestamp","ask_amount","ask_price","bid_price","bid_amount"]
[1733574099587,0.89798775,4003.7,4003.3,0.3963]
[1733574099789,0.17465,4003.4,4003.3,0.3963]
[1733574100489,3.33068628,4003.5,4003.1,3.2078]
[1733574100688,0.17465,4003.2,4003.1,3.2078]
[1733574103986,3.11242843,4003.2,4003.1,3.2078]
[1733574104193,0.17465,4003.2,4003.1,3.2078]
[1733574105495,3.11245921,4003.2,4003.1,3.2078]
[1733574106191,2.93780921,4003.2,4003.1,3.38246]
[1733574106400,3.11245921,4003.2,4003.1,3.38246]
[1733574107096,3.11245921,4003.2,4003.1,3.2078]
[1733574108393,0.17465,4003.2,4003.1,3.2078]
[1733574109194,0.17468,4002.7,4002.5,7.12993446]
[1733574109497,0.58828,4002.6,4002.5,3.38248]
[1733574110094,0.4136,4002.6,4002.5,3.38248]
[1733574110301,0.58828,4002.6,4002.5,3.38248]
[1733574112397,0.58828,4002.6,4002.5,3.2078]
[1733574112598,0.58828,4002.6,4002.5,3.38248]
[1733574113696,0.58828,4002.6,4002.5,0.17468]
[1733574117503,0.17468,4002.5,4002.4,3.75669]
[1733574117701,0.17468,4002.5,4002.4,0.54889]
[1733574120201,0.4136,4002.6,4002.5,0.17468]
[1733574120401,2.93780921,4002.7,4002.6,0.17468]
[1733574120733,2.94168382,4002.8,4002.7,0.17468]
[1733574120906,2.94168382,4002.9,4002.8,0.17467]
[1733574121105,2.94168382,4002.9,4002.8,1.07265775]
[1733574121506,2.94168382,4003.0,4002.8,0.89798775]
[1733574121702,2.94168382,4003.1,4003.0,0.17466]
[1733574121903,6.14948382,4003.3,4003.0,1.28088775]
[1733574122103,2.94168382,4003.2,4003.1,40.97466]
[1733574122304,3.11633382,4003.2,4003.1,0.17466]
[1733574123605,0.17465,4003.2,4003.1,0.17466]
[1733574124201,3.38245,4003.3,4003.2,0.17465]
[1733574125110,3.2078,4003.3,4003.2,0.17465]
[1733574125499,0.24974463,4004.0,4003.2,10.36502681]
[1733574125500,3.2078,4003.9,4003.2,10.36502681]
[1733574125712,3.38243,4003.9,4003.8,0.17463]
[1733574126609,3.2078,4003.9,4003.8,0.17463]
[1733574128010,3.2078,4003.9,4003.8,4.09731224]
[1733574128211,2.94168382,4004.6,4003.9,0.43656]
[1733574128411,0.1746,4004.6,4004.5,0.1746]
[1733574131010,0.3812,4004.8,4004.4,0.8181]
[1733574131210,0.1746,4004.5,4004.4,0.4073]
[1733574131815,0.1746,4004.5,4004.4,0.5819]
[1733574133416,0.1746,4004.5,4004.4,0.4073]
[1733574133818,0.1746,4004.5,4004.4,0.5819]
[1733574135119,0.1746,4004.5,4004.4,0.4073]
[1733574135513,0.1746,4004.5,4004.4,0.5819]
[1733574136118,0.17459,4004.7,4004.6,0.17459]
[1733574136817,0.17459,4004.7,4004.4,0.4073]
[1733574136818,0.17459,4004.6,4004.5,0.1746]
[1733574138025,3.589,4004.8,4004.7,0.17459]
[1733574138924,3.2078,4004.8,4004.7,0.17459]
[1733574139520,3.2078,4004.8,4004.7,0.55549]
[1733574143626,3.2078,4004.8,4004.7,41.35549]
[1733574145131,3.2078,4004.8,4004.7,0.55549]
[1733574145736,0.01121,4005.0,4004.9,0.17458]
[1733574146628,0.01121,4005.0,4004.9,1.07256775]
[1733574148127,0.01121,4005.0,4004.9,4.28036775]
[1733574148831,0.3891,4005.3,4005.2,0.17457]
[1733574149630,0.3891,4005.3,4005.2,1.07255775]
[1733574154344,0.4036,4005.6,4005.2,1.07255775]
[1733574154534,0.4036,4005.6,4005.5,0.17455]
[1733574156141,0.4036,4005.6,4005.5,1.07253775]
[1733574156329,0.4038,4005.7,4005.6,0.17455]
[1733574156535,0.4038,4005.7,4005.6,0.57855]
[1733574158035,0.57835,4005.7,4005.6,0.57855]
[1733574158235,0.4038,4005.7,4005.6,0.57855]
[1733574158543,0.57835,4005.7,4005.6,0.57855]
[1733574159139,0.4038,4005.7,4005.6,0.57855]
[1733574159437,0.57835,4005.7,4005.6,0.57855]
[1733574159745,0.57835,4005.7,4004.7,0.43647]
[1733574159746,0.17457,4005.2,4005.1,0.17457]
[1733574161339,0.89798775,4005.4,4004.9,3.2078]
[1733574161643,0.17458,4005.0,4004.9,3.2078]
[1733574162038,0.55528,4005.0,4004.9,3.38238]
[1733574162832,0.3807,4005.0,4004.5,0.89798775]
[1733574163038,0.17459,4004.7,4004.6,0.17459]
[1733574164645,0.17459,4004.6,4004.5,1.07258775]
[1733574165148,0.17459,4004.7,4004.6,0.17459]
[1733574165644,0.1746,4004.5,4004.4,0.1746]
[1733574165844,2.94168382,4004.9,4004.3,1.28558775]
[1733574166043,0.1746,4004.4,4004.3,1.46018775]
[1733574166736,0.1746,4004.4,4004.3,1.07258775]
[1733574168045,0.1746,4004.4,4004.3,0.1746]
[1733574168443,0.17461,4004.3,4004.2,4.10578775]
[1733574168644,0.56681,4004.3,4004.2,4.10578775]
[1733574169247,0.3922,4004.3,4003.7,44.72024737]
[1733574169441,0.17463,4003.7,4003.6,1.30108775]
[1733574169949,0.17463,4003.7,4003.6,42.27572775]
[1733574170143,0.17463,4003.7,4003.6,42.10108775]
[1733574170346,0.17463,4003.7,4003.6,41.2031]
[1733574171946,0.17463,4003.7,4003.6,40.8]
[1733574173747,0.17463,4003.7,4003.6,41.69798775]
[1733574174955,0.4141,4003.8,4003.6,41.69798775]
[1733574174956,0.58873,4003.8,4003.7,0.17463]
[1733574175154,0.4141,4003.8,4003.6,41.69798775]
[1733574175446,0.17463,4003.7,4003.6,41.87261775]
[1733574176256,0.17463,4003.7,4003.6,41.69798775]
[1733574177749,0.17463,4003.7,4003.6,40.8]
[1733574178049,0.7959,4003.8,4003.3,0.3967]
[1733574178050,0.17465,4003.4,4003.3,0.3967]
[1733574178449,0.17465,4003.4,4003.3,1.29468775]
[1733574179452,0.17465,4003.4,4003.3,1.46933775]
[1733574180550,0.17465,4003.4,4003.3,1.29468775]
[1733574181554,0.17465,4003.4,4003.3,0.89798775]
[1733574181859,0.17465,4003.2,4003.1,40.8]
[1733574182152,0.17466,4003.1,4003.0,1.70488775]
[1733574182753,0.17466,4003.1,4003.0,42.50488775]
[1733574184446,0.17466,4003.1,4003.0,42.10598775]
[1733574184653,0.17466,4003.1,4003.0,41.208]
[1733574184950,0.17466,4003.1,4003.0,0.408]
[1733574188156,0.17467,4002.8,4002.7,0.89798775]
[1733574188658,0.17468,4002.6,4002.5,44.4227]
[1733574189051,0.17468,4002.6,4002.5,3.6227]
[1733574189555,0.17468,4002.6,4002.2,0.3814]
[1733574189556,0.4115,4002.6,4002.2,0.3814]
[1733574189752,0.4115,4002.6,4002.3,41.2089]
[1733574189950,0.17469,4002.4,4002.3,0.4089]
[1733574190152,0.1747,4002.1,4002.0,3.7735]
[1733574190355,0.1747,4002.1,4002.0,4.1558]
[1733574190557,0.1747,4002.1,4002.0,44.9558]
[1733574191261,0.89798775,4002.4,4002.0,44.7811]
[1733574191556,0.4115,4002.6,4002.1,0.1747]
[1733574191864,0.1747,4002.2,4002.1,0.1747]
[1733574192156,0.56038,4002.7,4002.6,0.17468]
[1733574192357,0.4056,4003.1,4002.6,0.17468]
[1733574192358,3.38247,4002.9,4002.6,0.89798775]
[1733574192662,3.2078,4002.9,4002.8,0.17467]
[1733574193150,3.2078,4002.9,4002.8,0.55697]
[1733574193355,3.38247,4002.9,4002.8,0.55697]
[1733574193555,3.2078,4002.9,4002.8,0.55697]
[1733574193755,3.38247,4002.9,4002.8,0.55697]
[1733574194355,3.38247,4002.9,4002.8,0.3823]
[1733574195357,3.38247,4002.9,4002.8,0.55697]
[1733574196256,3.38247,4002.9,4002.8,0.3823]
[1733574196460,3.38247,4002.9,4002.8,0.55697]
[1733574196659,3.38247,4002.9,4002.8,0.3823]
[1733574197063,3.2078,4002.9,4002.8,0.55697]
[1733574198158,3.38247,4002.9,4002.8,0.55697]
[1733574198567,3.2078,4002.9,4002.8,0.55697]
[1733574198869,3.38247,4002.9,4002.8,0.55697]
[1733574200765,3.2078,4002.9,4002.8,0.55697]
[1733574200962,3.38247,4002.9,4002.8,0.55697]
[1733574201163,3.2078,4002.9,4002.8,0.55697]
[1733574202460,3.38247,4002.9,4002.8,0.17467]
[1733574203360,3.2078,4002.9,4002.3,0.7851]
[1733574203565,0.17469,4002.5,4002.2,0.1747]
[1733574203863,0.17469,4002.5,4002.1,0.7848]
[1733574204578,3.6115,4002.9,4002.1,0.7848]
[1733574204779,0.93239,4002.4,4002.3,0.17469]
[1733574205982,0.1747,4002.3,4002.2,0.1747]
[1733574207775,0.1747,4002.2,4002.1,0.5555]
[1733574210783,0.7577,4002.4,4002.0,44.0078]
[1733574210784,0.1747,4002.1,4002.0,3.2078]
[1733574211979,0.17471,4002.0,4001.9,0.17471]
[1733574212184,0.17471,4002.0,4001.6,0.4007]
[1733574212185,3.2078,4002.1,4001.6,0.4007]
[1733574212483,0.4079,4001.9,4001.8,0.17472]
[1733574214081,0.17469,4002.3,4002.2,0.17469]
[1733574214280,0.4079,4002.3,4002.2,0.17469]
[1733574214481,0.58259,4002.3,4002.2,0.17469]
[1733574214678,0.4079,4002.3,4002.2,0.17469]
[1733574214878,0.58259,4002.3,4002.2,40.97469]
[1733574215278,0.4079,4002.3,4002.2,0.17469]
[1733574215491,0.58259,4002.3,4002.2,0.17469]
[1733574216184,0.4079,4002.3,4002.0,40.8]
[1733574216387,0.17471,4002.1,4001.6,0.8019]
[1733574216783,0.17471,4002.1,4002.0,0.17471]
[1733574218482,0.89878131,4002.2,4002.1,0.1747]
[1733574219288,0.58259,4002.3,4002.2,0.1747]
[1733574221980,0.4079,4002.3,4002.2,0.1747]
[1733574223094,0.58259,4002.3,4002.2,0.1747]
[1733574223393,0.4079,4002.3,4002.2,0.1747]
[1733574224594,0.3761,4002.4,4002.3,0.17469]
[1733574225492,1.27488131,4002.4,4002.3,0.17469]
[1733574226295,1.44957131,4002.4,4002.3,0.17469]
[1733574226896,0.1747,4002.2,4002.1,0.1747]
[1733574227098,0.1747,4002.1,4002.0,3.3825]
[1733574227389,0.17471,4002.0,4001.9,0.17471]
[1733574229397,4.48648131,4002.1,4001.6,0.7746]
[1733574229589,4.48648131,4002.1,4002.0,0.17471]
[1733574229590,4.66119131,4002.1,4002.0,0.17471]
[1733574231100,4.66119131,4002.1,4001.6,0.7746]
[1733574231101,0.17471,4002.0,4001.9,0.17471]
[1733574231288,4.48648131,4002.1,4001.6,0.7746]
[1733574231289,7.42816513,4002.1,4001.6,0.7746]
[1733574231490,0.17472,4001.6,4001.5,0.17473]
[1733574231692,0.56092,4001.6,4001.5,0.17473]
[1733574231897,0.7755,4001.6,4001.3,0.3975]
[1733574232201,0.17473,4001.5,4001.4,0.17473]
[1733574234599,0.95023,4001.6,4001.3,0.3975]
[1733574234806,0.95022,4001.6,4001.5,0.17473]
[1733574235702,0.3862,4001.6,4001.5,0.17473]
[1733574236396,0.3862,4001.6,4001.5,40.97473]
[1733574236599,0.3862,4001.6,4001.5,41.36483]
[1733574237097,0.17472,4001.7,4001.5,41.1901]
[1733574237296,0.17472,4001.7,4001.6,0.17472]
[1733574238004,0.17472,4001.7,4001.6,40.97472]
[1733574239204,1.94818131,4002.0,4001.6,40.8]
[1733574239401,0.17472,4001.9,4001.8,0.17471]
[1733574239797,0.17471,4002.0,4001.9,0.17471]
[1733574240501,3.7688,4002.1,4002.0,0.17471]
[1733574242806,3.5941,4002.1,4002.0,0.17471]
[1733574244104,3.2078,4002.6,4002.0,0.17471]
[1733574244406,4.67766131,4002.6,4002.5,0.17468]
[1733574244603,3.77888,4002.6,4002.5,0.17468]
[1733574244904,0.1747,4002.2,4002.1,0.5738]
[1733574245109,1.07348131,4002.2,4002.1,0.5738]
[1733574245907,6.93128382,4002.6,4002.1,0.3991]
[1733574245908,0.17469,4002.4,4002.1,0.3991]
[1733574246097,0.17469,4002.4,4002.3,0.17469]
[1733574247203,3.6042,4002.6,4002.1,4.75610737]
[1733574247504,3.2078,4002.6,4002.5,0.17468]
[1733574248104,3.2078,4002.6,4002.5,0.57378]
[1733574248902,3.38248,4002.6,4002.5,0.57378]
[1733574251299,0.1747,4002.3,4002.2,0.17469]
[1733574252202,0.1747,4002.2,4002.1,0.5738]
[1733574252402,3.49212017,4002.2,4002.1,0.5738]
[1733574253006,4.39090148,4002.2,4002.1,0.3991]
[1733574253207,1.45198131,4002.2,4002.1,0.3991]
[1733574253402,1.45198131,4002.2,4001.9,0.56921]
[1733574253403,0.17471,4002.0,4001.9,0.17471]
[1733574253708,4.29246798,4002.1,4001.7,3.2078]
[1733574253908,0.17473,4001.5,4001.4,0.4008]
[1733574254105,1.07351131,4001.5,4001.4,0.4008]
[1733574254306,1.07351131,4001.5,4001.4,0.57553]
[1733574254601,1.46341131,4001.5,4001.4,0.57553]
[1733574254802,0.3899,4001.5,4001.4,0.57553]
[1733574256412,0.56463,4001.5,4001.4,0.57553]
[1733574256710,0.3899,4001.5,4001.4,0.57553]
[1733574256908,0.56463,4001.5,4001.4,0.57553]
[1733574258602,0.56463,4001.5,4001.2,3.2078]
[1733574258603,0.3899,4001.5,4001.2,3.2078]
[1733574258809,0.17474,4001.3,4001.2,3.2078]
[1733574259207,0.17474,4001.3,4001.2,7.69671334]
[1733574259711,0.17474,4001.3,4001.2,3.92621919]
[1733574260229,0.4069,4001.4,4001.0,4.32221919]
[1733574260408,1.07353131,4001.1,4001.0,4.32221919]
[1733574260614,1.07353131,4001.1,4001.0,0.396]
[1733574261612,0.89878131,4001.1,4000.9,4.10096919]
[1733574261919,0.17475,4001.0,4000.9,4.10096919]
[1733574262214,0.17474,4001.2,4001.1,0.17474]
[1733574262915,1.30568131,4001.4,4001.0,0.3881]
[1733574263318,0.17474,4001.2,4001.1,0.17475]
[1733574263513,1.30568131,4001.4,4001.0,0.3881]
[1733574263716,1.30568131,4001.4,4001.2,0.17474]
[1733574263717,0.17474,4001.3,4001.2,0.17474]
[1733574264013,0.17474,4001.2,4001.1,0.17474]
[1733574264410,0.17474,4001.4,4001.3,0.17473]
[1733574264605,4.67121131,4001.5,4001.4,0.17473]
[1733574265216,0.17474,4001.4,4001.3,0.17474]
[1733574266121,4.49648131,4001.5,4001.0,4.31431919]
[1733574266321,3.11370596,4001.3,4001.2,0.17474]
[1733574266712,0.17475,4001.1,4001.0,0.56285]
[1733574269419,4.01055981,4001.2,4001.1,0.17475]
[1733574269622,4.01055981,4001.2,4001.1,0.14189805]
[1733574270513,3.83580981,4001.2,4000.6,44.4212]
[1733574270709,1.07354131,4000.7,4000.6,0.4134]
[1733574271115,4.01056981,4000.7,4000.6,0.4134]
[1733574271517,1.07354131,4000.7,4000.6,0.4134]
[1733574271816,0.17477,4000.5,4000.4,0.17477]
[1733574272016,0.17478,4000.4,4000.3,0.55668]
[1733574272217,0.56538,4000.4,4000.3,41.35668]
[1733574272620,0.3906,4000.4,4000.3,40.97478]
[1733574272916,0.03657702,4000.5,4000.3,40.8]
[1733574273119,0.03657702,4000.4,4000.3,41.87356131]
[1733574274016,0.3816,4001.1,4001.0,0.17475]
[1733574274722,0.3816,4001.1,4001.0,40.97475]
[1733574275721,0.3816,4001.1,4001.0,0.17475]
[1733574276316,0.3866,4001.5,4001.4,0.17473]
[1733574277418,0.56133,4001.5,4001.4,0.17473]
[1733574277826,0.3866,4001.5,4001.4,0.17473]
[1733574278515,0.56133,4001.5,4001.4,0.17473]
[1733574281425,3.4983585,4001.5,4001.4,0.17473]
[1733574282221,0.17474,4001.4,4001.3,0.17473]
[1733574282533,3.11017665,4001.4,4001.3,0.17473]
[1733574283627,2.93543665,4001.4,4001.3,0.17473]
[1733574284727,2.93543665,4001.4,4001.1,0.3895]
[1733574284925,0.17474,4001.2,4001.1,0.56424]
[1733574285326,0.55004,4001.2,4001.1,0.56424]
[1733574285521,0.3753,4001.2,4001.1,0.56424]
[1733574285727,0.55004,4001.2,4001.1,0.56424]
[1733574286026,0.3753,4001.2,4001.1,0.56424]
[1733574286225,0.3753,4001.2,4000.8,0.3906]
[1733574286433,0.17475,4001.1,4001.0,0.17475]
[1733574293935,0.3753,4001.2,4000.8,4.88227919]
[1733574293936,0.17475,4000.9,4000.8,4.88227919]
[1733574294135,0.17475,4000.9,4000.8,0.95606]
[1733574294731,0.17475,4000.9,4000.8,0.56546]
[1733574294933,0.17476,4000.9,4000.8,0.17476]
[1733574295526,0.17476,4000.8,4000.7,0.17476]
[1733574297331,0.17476,4000.8,4000.7,4.10097919]
[1733574299731,0.17476,4000.8,4000.7,0.17476]
[1733574300126,2.93543665,4001.1,4000.7,4.4912357]
[1733574300332,0.17476,4000.9,4000.8,4.10304542]
[1733574302429,0.17476,4000.9,4000.8,4.10305542]
[1733574302834,0.17476,4000.9,4000.8,3.92829542]
[1733574303538,0.17476,4000.9,4000.6,1.07355131]
[1733574303539,0.17476,4000.7,4000.6,1.07355131]
[1733574303740,3.11451885,4000.7,4000.6,1.07355131]
[1733574303939,2.93975885,4000.7,4000.5,3.76697]
[1733574304136,3.49182885,4000.6,4000.5,3.76697]
[1733574304540,3.49189215,4000.6,4000.5,3.76697]
[1733574304935,0.55207,4000.6,4000.5,3.76697]
[1733574305630,0.55207,4000.6,4000.5,0.3844]
[1733574305830,0.55207,4000.6,4000.5,0.55917]
[1733574307734,4.31336798,4000.8,4000.5,0.3844]
[1733574307937,0.17476,4000.7,4000.6,0.17476]
[1733574310039,0.17477,4000.6,4000.5,0.55917]
[1733574310751,0.17477,4000.6,4000.5,41.35917]
[1733574311643,0.17477,4000.6,4000.5,45.85044651]
[1733574311941,0.17477,4000.6,4000.5,45.85046388]
[1733574312342,0.17477,4000.6,4000.5,45.85048134]
[1733574312548,0.17477,4000.6,4000.5,45.28743382]
[1733574313048,0.17477,4000.6,4000.5,41.35917]
[1733574313437,0.17477,4000.6,4000.5,45.11267857]
[1733574313636,0.17477,4000.6,4000.5,45.28744857]
[1733574316145,0.17477,4000.7,4000.6,0.17476]
[1733574316650,0.17477,4000.7,4000.6,4.10303857]
[1733574317247,0.17477,4000.7,4000.6,0.17476]
[1733574317552,0.3975,4000.8,4000.5,45.11267857]
[1733574317846,0.17477,4000.6,4000.5,45.11267857]
[1733574318050,0.17477,4000.6,4000.5,41.1844]
[1733574318250,0.17477,4000.6,4000.5,3.92827857]
[1733574318545,3.91586798,4000.6,3999.9,3.92827857]
[1733574318751,3.8377854,4000.0,3999.7,3.2078]
[1733574318950,0.1748,3999.8,3999.7,3.3826]
[1733574319154,3.71490409,3999.9,3999.7,3.2078]
[1733574319343,3.88970409,3999.9,3999.8,0.1748]
[1733574319650,3.88970409,3999.9,3999.7,3.2078]
[1733574319651,0.7759,3999.9,3999.7,3.2078]
[1733574319840,0.9507,3999.9,3999.8,0.1748]
[1733574320952,0.7759,3999.9,3999.8,0.1748]
[1733574321150,0.9507,3999.9,3999.8,0.1748]
[1733574321945,2.93900409,4000.0,3999.9,0.1748]
[1733574322147,3.91586798,4000.3,3999.9,3.2078]
[1733574322148,2.93900409,4000.3,3999.9,3.2078]
[1733574322350,3.2078,4000.4,4000.3,0.17478]
[1733574322548,3.11377409,4000.5,4000.3,40.8]
[1733574322746,3.11377409,4000.5,4000.4,0.17478]
[1733574323148,0.17477,4000.5,4000.4,0.17478]
[1733574323449,3.11275104,4000.5,4000.4,40.8]
[1733574324350,4.81464929,4000.7,4000.3,0.93868]
[1733574324553,3.49748949,4000.4,4000.3,0.3856]
[1733574324750,4.3962708,4000.4,4000.3,0.3856]
[1733574325651,3.49748949,4000.4,4000.3,0.56038]
[1733574325853,0.3846,4000.4,4000.3,0.56038]
[1733574326449,3.11324552,4000.5,4000.4,0.17478]
[1733574326648,0.17477,4000.5,4000.4,0.17478]
[1733574327254,0.17478,4000.4,4000.3,4.31387857]
[1733574327454,0.17478,4000.4,4000.3,0.3856]
[1733574328153,1.07356131,4000.4,4000.3,0.3856]
[1733574328453,0.17478,4000.3,4000.2,3.92827857]
[1733574328648,0.17478,4000.3,4000.0,6.4534087]
[1733574328649,0.8073,4000.3,4000.1,3.92827857]
[1733574328854,0.17477,4000.5,4000.4,0.17477]
[1733574329055,0.17478,4000.4,4000.3,4.1006551]
[1733574329255,0.17478,4000.4,4000.3,3.9258751]
[1733574329558,0.17478,4000.4,4000.2,3.9258751]
[1733574329753,0.17478,4000.4,4000.3,4.1006551]
[1733574331549,1.70608131,4000.7,4000.3,3.9258751]
[1733574331756,0.17477,4000.6,4000.5,0.17477]
[1733574333164,0.17478,4000.5,4000.4,0.17477]
[1733574333564,0.17478,4000.5,4000.4,4.1006451]
[1733574333759,1.70608131,4000.7,4000.3,3.9258751]
[1733574333959,0.17478,4000.4,4000.3,4.1006551]
[1733574338572,0.17478,4000.4,4000.3,4.6788537]
[1733574338773,4.64455683,4000.7,4000.3,4.5040737]
[1733574338973,0.17478,4000.5,4000.4,0.17477]
[1733574339177,0.17478,4000.5,4000.4,4.10350178]
[1733574339468,0.17478,4000.5,4000.4,3.92873178]
[1733574341569,2.93847552,4000.6,4000.3,4.10351178]
[1733574341872,4.09064798,4000.4,4000.3,0.17478]
[1733574342272,0.17478,4000.4,4000.3,0.17478]
[1733574342466,4.09064798,4000.4,4000.3,0.17478]
[1733574343473,0.17478,4000.4,4000.3,0.17478]
[1733574343976,0.17478,4000.4,4000.0,4.73303178]
[1733574343977,4.09063798,4000.5,4000.4,0.17478]
[1733574344371,3.91586798,4000.5,4000.4,0.17478]
[1733574344573,2.94139683,4000.5,4000.3,0.17478]
[1733574344770,2.94139683,4000.5,4000.3,3.92873178]
[1733574344976,2.94139683,4000.6,4000.4,3.92873178]
[1733574345173,2.94139683,4000.6,4000.5,1.47635131]
[1733574345374,3.2078,4000.7,4000.6,0.17477]
[1733574345676,3.2078,4000.7,4000.6,0.55627]
[1733574346675,7.12366798,4000.7,4000.6,0.55627]
[1733574347266,3.2078,4000.7,4000.6,0.55627]
[1733574347478,7.12366798,4000.7,4000.6,0.55627]
[1733574347773,7.29842798,4000.7,4000.6,0.55627]
[1733574347973,7.12366798,4000.7,4000.6,0.55627]
[1733574348573,7.29842798,4000.7,4000.6,0.55627]
[1733574348768,7.29842798,4000.7,4000.6,4.31168637]
[1733574348769,3.38256,4000.7,4000.6,4.31168637]
[1733574348964,3.38256,4000.7,4000.6,3.93018637]
[1733574350378,3.38256,4000.7,4000.6,4.10495637]
[1733574351078,3.38256,4000.7,4000.6,3.93018637]
[1733574352677,0.17477,4000.6,4000.5,3.93018637]
[1733574352886,3.50432239,4000.6,4000.5,3.93018637]
[1733574353775,0.56347,4000.6,4000.5,3.93018637]
[1733574354182,3.50432239,4000.6,4000.5,3.93018637]
[1733574356785,0.17477,4000.5,4000.4,0.17478]
[1733574356982,5.44586345,4000.6,4000.5,0.17477]
[1733574357681,5.44586345,4000.6,4000.5,40.97477]
[1733574358480,0.56347,4000.6,4000.5,0.17477]
[1733574359688,5.44586345,4000.6,4000.5,0.17477]
[1733574360483,0.56347,4000.6,4000.5,0.17477]
[1733574360976,5.44586345,4000.6,4000.5,0.17477]
[1733574363091,0.56347,4000.6,4000.5,0.17477]
[1733574363384,0.3887,4000.6,4000.3,0.3882]
[1733574363690,0.17478,4000.5,4000.4,0.17478]
[1733574363890,0.17478,4000.5,4000.4,10.57134177]
[1733574364086,0.17478,4000.5,4000.4,10.39656177]
[1733574364285,0.55898,4000.5,4000.4,4.50734307]
[1733574365489,3.5001064,4000.5,4000.4,4.50734307]
[1733574365696,0.17478,4000.4,4000.3,5.8892187]
[1733574365890,0.17478,4000.4,4000.3,10.39731667]
[1733574366593,3.1159064,4000.4,4000.3,10.39731667]
[1733574367086,0.17478,4000.4,4000.3,10.39731667]
[1733574367492,3.1159064,4000.4,4000.3,10.39731667]
[1733574368486,3.1159064,4000.4,4000.3,10.3984115]
[1733574369083,3.1159064,4000.4,4000.3,4.5091928]
[1733574370196,3.1159064,4000.4,4000.3,10.3984115]
[1733574370785,3.1159064,4000.4,4000.3,4.5091928]
[1733574370984,4.96030186,4000.4,4000.2,3.93297248]
[1733574371193,0.17479,4000.2,4000.1,3.93297248]
[1733574371393,3.11577082,4000.2,4000.1,3.93297248]
[1733574371693,0.17479,4000.2,4000.1,3.93297248]
[1733574371899,0.1748,3999.9,3999.8,0.1748]
[1733574372197,4.09607718,3999.9,3999.8,0.1748]
[1733574372991,4.09606718,4000.0,3999.9,0.1748]
[1733574373794,4.09606718,4000.0,3999.9,1.07358131]
[1733574375593,4.31577718,4000.1,3999.9,0.89878131]
[1733574375797,3.92127718,4000.1,4000.0,40.97479]
[1733574376190,2.94020881,4000.1,4000.0,40.97479]
[1733574376394,3.77257,4000.6,4000.0,44.73297248]
[1733574376395,2.94020881,4000.2,4000.0,44.73297248]
[1733574376594,0.17478,4000.3,4000.1,0.89878131]
[1733574377000,4.09605718,4000.3,4000.2,0.55679]
[1733574377398,3.92127718,4000.3,4000.2,0.55679]
[1733574377999,3.92127718,4000.3,4000.2,0.96179]
[1733574378400,3.92127718,4000.4,4000.3,0.17478]
[1733574378600,3.92127718,4000.4,4000.3,0.56098]
[1733574378795,0.17477,4000.5,4000.3,10.78180305]
[1733574378999,0.17477,4000.5,4000.4,4.68116435]
[1733574379506,0.17477,4000.5,4000.4,4.68129725]
[1733574380095,0.17477,4000.5,4000.4,0.17478]
[1733574380301,0.17477,4000.5,4000.4,4.10560137]
[1733574380502,0.17477,4000.5,4000.4,4.68134636]
[1733574381103,0.17477,4000.5,4000.4,10.57056506]
[1733574381602,3.77257,4000.6,4000.5,0.17477]
[1733574381810,3.77257,4000.6,4000.5,4.105487]
[1733574382108,3.2078,4000.6,4000.5,4.105487]
[1733574382301,3.2078,4000.6,4000.5,10.57029781]
[1733574383602,3.11620494,4000.8,4000.5,10.39552781]
[1733574383809,3.11620494,4000.8,4000.7,4.10521397]
[1733574384403,2.94144494,4000.8,4000.7,4.10521397]
[1733574385011,3.11620494,4000.8,4000.7,4.10521397]
[1733574385197,2.94144494,4000.8,4000.7,4.10521397]
[1733574385602,3.11620494,4000.8,4000.7,4.10521397]
[1733574386808,3.11620494,4000.8,4000.7,0.17476]
[1733574387204,3.11620494,4000.8,4000.7,0.58346]
[1733574387402,2.94144494,4000.8,4000.7,0.58346]
[1733574387603,3.11620494,4000.8,4000.7,0.58346]
[1733574388102,2.94144494,4000.8,4000.7,0.58346]
[1733574388607,3.11620494,4000.8,4000.7,0.58346]
[1733574393907,0.17476,4000.8,4000.7,0.4087]
[1733574394311,0.17476,4000.7,4000.6,0.17477]
[1733574394509,5.08031158,4000.7,4000.6,0.17477]
[1733574396026,0.17476,4000.7,4000.6,0.17477]
[1733574396311,5.08039516,4000.7,4000.6,0.17477]
[1733574397212,4.90563516,4000.7,4000.6,0.17477]
[1733574397417,4.90563516,4000.7,4000.6,1.07355131]
[1733574397718,5.08039516,4000.8,4000.7,0.17476]
[1733574397921,4.90563516,4000.8,4000.7,0.17476]
[1733574398107,5.08039516,4000.8,4000.7,0.17476]
[1733574398304,5.08055593,4000.8,4000.7,0.17476]
[1733574400017,4.90579593,4000.8,4000.5,0.3791]
[1733574400216,0.17477,4000.7,4000.6,0.17476]
[1733574400618,5.47136593,4000.7,4000.6,0.17476]
[1733574400920,0.17477,4000.6,4000.5,0.17477]
[1733574401219,0.17477,4000.6,4000.5,4.68028749]
[1733574401808,0.17477,4000.6,4000.5,4.6802064]
[1733574402412,0.17477,4000.6,4000.5,4.5054364]
[1733574403123,0.17477,4000.6,4000.5,4.6802064]
[1733574403424,0.17477,4000.6,4000.5,4.52411166]
[1733574403621,0.17477,4000.6,4000.5,4.69888166]
[1733574407325,0.17477,4000.6,4000.5,0.17477]
[1733574407527,0.3908,4000.7,4000.4,6.78800001]
[1733574407732,0.17477,4000.6,4000.5,4.69870945]
[1733574408428,0.17477,4000.6,4000.5,4.69863275]
[1733574411036,3.11797191,4000.8,4000.5,4.52386275]
[1733574411328,3.11797191,4000.9,4000.8,0.17476]
[1733574411526,0.17476,4000.9,4000.8,0.17476]
[1733574411733,0.17476,4000.9,4000.8,0.55876]
[1733574416033,5.08055593,4000.9,4000.8,0.55876]
[1733574416234,5.08055593,4000.9,4000.7,0.89878131]
[1733574416235,0.17476,4000.8,4000.7,0.17476]
[1733574416835,4.90579593,4001.0,4000.6,0.3866]
[1733574417032,3.92000309,4000.8,4000.6,0.3866]
[1733574417336,5.08054593,4001.0,4000.9,0.17475]